Workbook

Sheet Hoja1
S3: 0 | U3: 0
S4: x | U4: y
B5: IMAGEN | F5: Ley de Coulomb | Q5: 1 | R5: 0 | S5: =COS(2*PI()/$H$19*Q5)*$H$17 -> 688474.7828 | T5: 0 | U5: =SIN(2*PI()/$H$19*Q5)*$H$17 -> 577698.9363
F6: Calcula la fuerza con la que se atraen o repelen dos cargas | Q6: 2 | R6: 1 | S6: =COS(2*PI()/$H$19*Q6)*$H$17 -> 156064.5632 | T6: 1 | U6: =SIN(2*PI()/$H$19*Q6)*$H$17 -> 885086.1199
F7: Recuerda que a diferencia de la LGU las cargas pueden tener valores negativos | Q7: 3 | R7: 2 | S7: -449370 | T7: 2 | U7: 778331.6714
Q8: 4 | R8: 3 | S8: -844539.346 | T8: 3 | U8: 307387.1836
F9: Carga 1 (C) | H9: 1 | Q9: 5 | R9: 4 | S9: -844539.346 | T9: 4 | U9: -307387.1836
Q10: 6 | R10: 5 | S10: -449370 | T10: 5 | U10: -778331.6714
F11: Carga 2 (C) | H11: 1 | Q11: 7 | R11: 6 | S11: 156064.5632 | T11: 6 | U11: -885086.1199
Q12: 8 | R12: 7 | S12: 688474.7828 | T12: 7 | U12: -577698.9363
F13: Constante de Coulomb (Nm^2/C^2) | H13: 8987400000 | Q13: 9 | R13: 8 | S13: 898740 | T13: 8 | U13: -2.202179845e-10
Q14: 10 | R14: 9 | S14: 688474.7828 | T14: 9 | U14: 577698.9363
F15: Distancia entre las cargas (m) | H15: 100 | Q15: 11 | R15: 10 | S15: 156064.5632 | T15: 10 | U15: 885086.1199
Q16: 12 | R16: 11 | S16: -449370 | T16: 11 | U16: 778331.6714
F17: Fuerza resultante (N) | H17: =H13*H11*H9/H15^2 -> 898740 | Q17: 13 | R17: 12 | S17: -844539.346 | T17: 12 | U17: 307387.1836
Q18: 14 | R18: 13 | S18: -844539.346 | T18: 13 | U18: -307387.1836
F19: Número de divisiones | H19: 9 | Q19: 15 | R19: 14 | S19: -449370 | T19: 14 | U19: -778331.6714
Q20: 16 | R20: 15 | S20: 156064.5632 | T20: 15 | U20: -885086.1199
C28: Trabajo realizado con el apoyo del Programa UNAM-DGAPA-PAPIME PE110517

Sheet Hoja2
B1: n1x | C1: n1y | D1: R | E1: r | F1: Q | G1: q | H1: E | I1: e | J1: k | K1: Angulo inicial 1 | L1: Angulo inicial 2 | M1: eQx | N1: eQy | O1: eqx | P1: eqy | Q1: eTx | R1: eTy | S1: norma de eT
A2: incremento | B2: =COS(K2)*D2 -> 0.007071067812 | C2: =SIN(K2)*D2 -> 0.007071067812 | D2: 0.01 | E2: =SQRT((SIN(K2)*D2)^2 + (5-COS(K2)*D2)^2) -> 4.992933939 | F2: 1e-11 | G2: 1e-08 | H2: =$F$2*$J$2/(D2^2) -> 898.74 | I2: =$G$2*$J$2/(E2^2) -> 3.605142462 | J2: 8987400000 | K2: =PI()/4 -> 0.7853981634 | L2: =-ATAN(C2/(5-B2)) -> -0.001416215448 | M2: =COS(K2)*H2 -> 635.5051485 | N2: =SIN(K2)*H2 -> 635.5051485 | O2: =COS(L2)*I2 -> 3.605138847 | P2: =SIN(L2)*I2 -> -0.00510565674 | Q2: =M2+O2 -> 639.1102874 | R2: 635.5000429 | S2: =SQRT(Q2^2+R2^2) -> 901.2892232
A3: 0.01 | B3: =(Q2/S2)*A$3+B2 -> 0.01416213548 | C3: =(R2/S2)*A$3+C2 -> 0.01412207904 | D3: =SQRT(B3^2+C3^2) -> 0.01999997994 | E3: =SQRT((SIN(K3)*D3)^2 + (5-COS(K3)*D3)^2) -> 4.985898034 | H3: =$F$2*$J$2/(D3^2) -> 224.6854506 | I3: 3.615324514 | K3: =ATAN(B3/C3) -> 0.7868143746 | L3: =-ATAN(C3/(5-B3)) -> -0.002832430908 | M3: =COS(K3)*H3 -> 158.6514437 | N3: =SIN(K3)*H3 -> 159.1014492 | O3: 3.615310012 | P3: -0.0102401432 | Q3: 162.2667537 | R3: 159.0912091 | S3: 227.2454888
A4: 0.02 | B4: =(Q3/S3)*A$3+B3 -> 0.02130272844 | C4: =(R3/S3)*A$3+C3 -> 0.02112293128 | D4: =SQRT(B4^2+C4^2) -> 0.02999974108 | E4: =SQRT((SIN(K4)*D4)^2 + (5-COS(K4)*D4)^2) -> 4.978922642 | H4: =$F$2*$J$2/(D4^2) -> 99.86172371 | I4: =$G$2*$J$2/(E4^2) -> 3.625461636 | K4: =ATAN(B4/C4) -> 0.7896360724 | L4: =-ATAN(C4/(5-B4)) -> -0.004242636857 | M4: =COS(K4)*H4 -> 70.31301777 | N4: =SIN(K4)*H4 -> 70.91151808 | O4: =COS(L4)*I4 -> 3.625429007 | P4: =SIN(L4)*I4 -> -0.01538147102 | Q4: =M4+O4 -> 73.93844677 | R4: =N4+P4 -> 70.89613661 | S4: =SQRT(Q4^2+R4^2) -> 102.4361074
A5: 0.03 | B5: 0.02852073474 | C5: 0.0280439417 | D5: 0.03999868718 | E5: 4.97203786 | H5: 56.17493733 | I5: 3.635508943 | K5: 0.7938271296 | L5: -0.005640905402 | M5: 39.38545934 | N5: 40.05507679 | O5: 3.635451103 | P5: -0.02050745328 | Q5: 43.02091044 | R5: 40.03456934 | S5: 58.76704414
A6: 0.04 | B6: 0.0358413191 | C6: 0.03485636011 | D6: 0.04999565976 | E6: 4.965273 | H6: 35.95584201 | I6: 3.645421978 | K6: 0.7993292469 | L6: -0.007021489345 | M6: 25.06797156 | N6: 25.77633365 | O6: 3.645332116 | P6: -0.02559608125 | Q6: 28.71330368 | R6: 25.75073757 | S6: 38.56882541
A7: 0.05 | B7: 0.04328601138 | C7: 0.04153292785 | D7: 0.05998885627 | E7: 4.958656006 | H7: 24.97427602 | I7: 3.655157612 | K7: 0.8060637597 | L7: -0.008378929263 | M7: 17.29079147 | N7: 18.02062688 | O7: 3.655029305 | P7: -0.03062594871 | Q7: 20.94582077 | R7: 17.99000093 | S7: 27.61100399
A8: 0.06 | B8: 0.05087205236 | C8: 0.04804844643 | D8: 0.06997584522 | E8: 4.952212854 | H8: 18.35429744 | I8: 3.664674995 | K8: 0.8139346091 | L8: -0.009708162211 | M8: 12.60285566 | N8: 13.3434727 | O8: 3.664502302 | P8: -0.03557670046 | Q8: 16.26735796 | R8: 13.307896 | S8: 21.01730313
A9: 0.07 | B9: 0.05861203586 | C9: 0.05438032255 | D9: 0.07995367552 | E9: 4.94596698 | H9: 14.05908979 | I9: 3.673936502 | K9: 0.8228319914 | L9: -0.01100462618 | M9: 9.562260051 | N9: 10.3063664 | O9: 3.673714044 | P9: -0.04042948178 | Q9: 13.2359741 | R9: 10.26593692 | S9: 16.75053644
A10: 0.08 | B10: 0.06651385689 | C10: 0.06050904383 | D10: 0.08991906107 | E10: 4.939938765 | H10: 11.11553945 | I10: 3.682908594 | K10: 0.8326364634 | L10: -0.01226435187 | M10: 7.479956485 | N10: 8.222254453 | O10: 3.682631616 | P10: -0.04516735457 | Q10: 11.1625881 | R10: 8.177087099 | S10: 13.83720082
A11: 0.09 | B11: 0.07458094231 | C11: 0.06641853897 | D11: 0.09986861006 | E11: 4.934145149 | H11: 9.011063707 | I11: 3.691562529 | K11: 0.8432232248 | L11: =-ATAN(C11/(5-B11)) -> -0.01348403309 | M11: 5.992890916 | N11: 6.72937795 | O11: 3.691226935 | P11: -0.04977564288 | Q11: 9.684117851 | R11: 6.679602307 | S11: 11.76432002
A12: 0.1 | B12: 0.08281271247 | C12: 0.07209638716 | D12: 0.1097990637 | E12: 4.928599392 | H12: 7.454813753 | I12: 3.69987484 | K12: 0.8544662783 | L12: -0.01466106887 | M12: 4.894988358 | N12: 5.622573883 | O12: 3.699477209 | P12: -0.05424217659 | Q12: 8.594465568 | R12: 5.568331706 | S12: 10.24066191
A13: 0.11 | B13: 0.09120520276 | C13: 0.07753385961 | D13: 0.1197075119 | E13: 4.923311009 | H13: 6.271786458 | I13: 3.707827562 | K13: 0.8662421943 | L13: -0.0157935738 | M13: 4.062199633 | N13: 4.778476695 | O13: 3.707365137 | P13: -0.05855741378 | Q13: 7.769564771 | R13: 4.719919281 | S13: 9.090862156
A14: 0.12 | B14: 0.09975176813 | C14: 0.08272579763 | D14: 0.1295915616 | E14: 4.91828588 | H14: 5.351562782 | I14: 3.715408184 | K14: 0.8784332668 | L14: -0.01688035709 | M14: 3.4162124 | N14: 4.119310263 | O14: 3.71487885 | P14: -0.06271443842 | Q14: 7.13109125 | R14: 4.056595825 | S14: 8.204171628
A15: 0.13 | B15: 0.1084437989 | C15: 0.08767035024 | D15: 0.1394494455 | E15: 4.913526498 | H15: 4.621686554 | I15: 3.72260937 | K15: 0.8909299356 | L15: -0.01792087448 | M15: 2.905604089 | N15: 3.594085626 | O15: 3.722011614 | P15: -0.06670884446 | Q15: 6.627615703 | R15: 3.527376781 | S15: 7.507841025
A16: 0.14 | B16: 0.1172713909 | C16: 0.09236860739 | D16: 0.1492800682 | E16: 4.909032335 | H16: 4.033020427 | I16: 3.729428503 | K16: 0.9036324406 | L16: -0.01891515965 | M16: 2.495473676 | N16: 3.16825897 | O16: 3.728761359 | P16: -0.0705385291 | Q16: 6.224235035 | R16: 3.097720441 | S16: 6.95247968
A17: 0.15 | B17: 0.1262239306 | C17: 0.09682416941 | D17: 0.1590829986 | E17: 4.904800272 | H17: 3.551293236 | I17: 3.735867088 | K17: 0.9164517527 | L17: -0.01986374284 | M17: 2.16145673 | N17: 2.817763023 | O17: 3.735130085 | P17: -0.07420342317 | Q17: 5.896586815 | R17: 2.7435596 | S17: 6.503603259
A18: 0.16 | B18: 0.1352905765 | C18: 0.1010426918 | D18: 0.168858419 | E18: 4.900825058 | H18: 3.152017599 | I18: 3.741930105 | K18: 0.9293098804 | L18: -0.02076756417 | M18: 1.886126524 | N18: 2.52541911 | O18: 3.741123203 | P18: -0.07770518768 | Q18: 5.627249726 | R18: 2.447713923 | S18: 6.136549758
A19: 0.17 | B19: 0.1444606313 | C19: 0.105031438 | D19: 0.1786070462 | E19: 4.897099764 | H19: 2.817324648 | I19: 3.74762535 | K19: 0.9421396815 | L19: -0.02162788782 | M19: 1.656752436 | N19: 2.278703477 | O19: 3.74674888 | P19: -0.08104690182 | Q19: 5.403501316 | R19: 2.197656575 | S19: 5.833311315
A20: 0.18 | B20: 0.1537238114 | C20: 0.1087988635 | D20: 0.1883300371 | E20: 4.893616206 | H20: 2.533931599 | I20: 3.752962801 | K20: 0.9548843124 | L20: -0.02244622189 | M20: 1.463860371 | N20: 2.068313845 | O20: 3.752017408 | P20: -0.08423276217 | Q20: 5.215877779 | R20: 1.984081083 | S20: 5.580498073
A21: 0.19 | B21: 0.1630704283 | C21: 0.112354247 | D21: 0.1980288903 | E21: 4.890365321 | H21: 2.291801311 | I21: 3.757954046 | K21: 0.967496441 | L21: -0.02322424682 | M21: 1.300283055 | N21: 1.887224742 | O21: 3.756940636 | P21: -0.08726780693 | Q21: 5.057223691 | R21: 1.799956935 | S21: 5.367993706
A22: 0.2 | B22: 0.1724914969 | C22: 0.1157073748 | D22: 0.2077053516 | E22: 4.887337492 | H22: 2.083237085 | I22: =$G$2*$J$2/(E22^2) -> 3.762611782 | K22: 0.9799373263 | L22: -0.0239637538 | M22: 1.160518458 | N22: 1.730050191 | O22: 3.761531472 | P22: -0.09015767279 | Q22: 4.92204993 | R22: 1.639892518 | S22: 5.188046163
A23: 0.21 | B23: 0.1819787871 | C23: 0.1188682806 | D23: 0.2173613284 | E23: 4.884522816 | H23: =$F$2*$J$2/(D23^2) -> 1.902258406 | I23: 3.766949395 | K23: 0.9921758472 | L23: -0.02466659367 | M23: 1.040287101 | N23: 1.59260472 | O23: 3.765803471 | P23: -0.0929083879 | Q23: 4.806090571 | R23: 1.499696332 | S23: 5.034639577
A24: 0.22 | B24: 0.191524834 | C24: 0.1218470367 | D24: 0.2269988158 | E24: 4.881911316 | H24: 1.744162271 | I24: 3.770980612 | K24: 1.004187538 | L24: -0.02533463572 | M24: 0.9362207619 | N24: 1.471595295 | O24: 3.769770486 | P24: -0.09552620052 | Q24: 4.705991248 | R24: 1.376069095 | S24: 4.903052089
A25: 0.23 | B25: 0.2011229194 | C25: 0.1246535929 | D25: 0.2366198362 | E25: 4.879493111 | H25: 1.605209688 | I25: 3.774719223 | K25: 1.015953674 | L25: -0.02596973547 | M25: 0.8456398166 | N25: 1.364401496 | O25: 3.773446408 | P25: -0.09801744124 | Q25: 4.619086225 | R25: 1.266384055 | S25: 4.789539239
A26: 0.24 | B26: 0.2107670333 | C26: 0.1272976553 | D26: 0.2462263905 | E26: 4.877258542 | H26: 1.482398183 | I26: 3.778178873 | K26: 1.027460422 | L26: -0.02657371034 | M26: 0.7663915002 | N26: 1.268916246 | O26: 3.776844948 | P26: -0.1003884149 | Q26: 4.543236448 | R26: 1.168527831 | S26: 4.691103785
A27: 0.25 | B27: 0.2204518253 | C27: 0.1297885996 | D27: 0.2558204211 | E27: 4.875198262 | H27: 1.373294409 | I27: 3.781372897 | K27: 1.038698082 | L27: -0.0271483218 | M27: 0.6967307668 | N27: 1.183428821 | O27: 3.779979487 | P27: -0.1026453184 | Q27: 4.476710254 | R27: 1.080783502 | S27: 4.605326012
A28: 0.26 | B28: 0.2301725492 | C28: 0.1321354117 | D28: 0.2654037857 | E28: 4.8733033 | H28: 1.275909422 | I28: 3.784314208 | K28: 1.04966041 | L28: -0.02769526309 | M28: 0.6352313944 | N28: 1.106537812 | O28: 3.782862964 | P28: -0.1047941798 | Q28: 4.418094359 | R28: 1.001743632 | S28: 4.530237088
A29: 0.27 | B29: 0.2399250065 | C29: 0.1343466506 | D29: 0.2749782378 | E29: 4.8715651 | H29: 1.188604643 | I29: 3.787015216 | K29: 1.060344028 | L29: -0.0282161511 | M29: 0.580718874 | N29: 1.037085621 | O29: 3.785507798 | P29: -0.1068408153 | Q29: 4.366226672 | R29: 0.930244806 | S29: 4.46422342
A30: 0.28 | B30: 0.2497054907 | C30: 0.136430428 | D30: 0.284545416 | E30: 4.869975545 | H30: 1.110020205 | I30: 3.789487775 | K30: 1.070747916 | L30: -0.02871252176 | M30: 0.5322191929 | N30: 0.9741086109 | O30: 3.787925838 | P30: -0.1087908007 | Q30: 4.320145031 | R30: 0.8653178102 | S30: 4.4059537
A31: 0.29 | B31: 0.2595107345 | C31: 0.1383944019 | D31: 0.2941068374 | E31: 4.868526965 | H31: 1.039019812 | I31: 3.791743156 | K31: 1.080872971 | L31: -0.029185828 | M31: 0.4889193559 | N31: 0.9167987968 | O31: 3.790128344 | P31: -0.1106494533 | Q31: 4.2790477 | R31: 0.8061493435 | S31: 4.354322678
A32: 0.3 | B32: 0.2693378604 | C32: 0.1402457791 | D32: 0.3036638958 | E32: 4.867212135 | H32: 0.9746479024 | I32: 3.793792038 | K32: 1.090721643 | L32: -0.02963743966 | M32: 0.4501366685 | N32: 0.8644741252 | O32: 3.792125969 | P32: -0.1124218228 | Q32: 4.242262637 | R32: 0.7520523024 | S32: 4.308407472
A33: 0.31 | B33: 0.2791843354 | C33: 0.141991325 | D33: 0.3132178626 | E33: 4.866024268 | H33: 0.9160960864 | I33: 3.795644504 | K33: 1.100297613 | L33: -0.0300686449 | M33: 0.4152946323 | N33: 0.8165552081 | O33: 3.793928767 | P33: -0.1141126896 | Q33: 4.2092234 | R33: 0.7024425185 | S33: 4.267433318
A34: 0.32 | B34: 0.2890479304 | C34: 0.1436373789 | D34: 0.3227698912 | E34: 4.864957 | H34: 0.8626766427 | I34: 3.797310054 | K34: 1.109605538 | L34: -0.03048065251 | M34: 0.3839038744 | N34: 0.7725469598 | O34: 3.795546206 | P34: -0.1157265666 | Q34: 4.179450081 | R34: 0.6568203932 | S34: 4.230746507
A35: 0.33 | B35: 0.2989266836 | C35: 0.1451898718 | D35: 0.3323210211 | E35: 4.864004373 | H35: 0.8138014213 | I35: 3.798797624 | K35: 1.118650825 | L35: -0.03087459511 | M35: 0.3555469456 | N35: 0.7320239905 | O35: 3.796987183 | P35: -0.1172677057 | Q35: 4.152534129 | R35: 0.6147562848 | S35: 4.19779287
A36: 0.34 | B36: 0.3088188681 | C36: 0.1466543468 | D36: 0.3418721847 | E36: 4.863160816 | H36: 0.7689649352 | I36: 3.800115607 | K36: 1.12743945 | L36: -0.03125153257 | M36: 0.3298661176 | N36: 0.6946188999 | O36: 3.79826005 | P36: -0.1187401064 | Q36: 4.128126168 | R36: 0.5758787935 | S36: 4.168100532
A37: 0.35 | B37: 0.3187229626 | C37: 0.1480359804 | D37: 0.3514242143 | E37: 4.862421123 | H37: 0.7277307163 | I37: 3.801271876 | K37: 1.135977805 | L37: -0.03161245593 | M37: 0.3065535205 | N37: 0.660012829 | O37: 3.799372639 | P37: -0.1201475258 | Q37: 4.105926159 | R37: 0.5398653032 | S37: 4.14126601
A38: 0.36 | B38: 0.3286376267 | C38: 0.1493396043 | D38: 0.3609778485 | E38: 4.861780432 | H38: 0.6897202341 | I38: 3.802273814 | K38: 1.144272574 | L38: -0.0319582912 | M38: 0.2853431235 | N38: 0.627927785 | O38: 3.800332287 | P38: -0.1214934904 | Q38: 4.08567541 | R38: 0.5064342946 | S38: 4.11694295
A39: 0.37 | B39: 0.3385616783 | C39: 0.1505697265 | D39: 0.3705337401 | E39: 4.861234204 | H39: 0.6546038435 | I39: 3.803128339 | K39: 1.152330631 | L39: -0.03228990336 | M39: 0.2660041745 | N39: 0.598120365 | O39: 3.801145868 | P39: -0.1227813079 | Q39: 4.067150043 | R39: 0.4753390571 | S39: 4.094832926
A40: 0.38 | B40: 0.3484940739 | C40: 0.151730553 | D40: 0.3800924627 | E40: 4.860778204 | H40: 0.6220933459 | I40: 3.803841931 | K40: 1.160158953 | L40: -0.03260810021 | M40: 0.2483358041 | N40: 0.5703765943 | O40: 3.801819821 | P40: -0.1240140791 | Q40: 4.050155625 | R40: 0.4463625153 | S40: 4.074677911
A41: 0.39 | B41: 0.3584338917 | C41: 0.1528260077 | D41: 0.3896545179 | E41: 4.860408477 | H41: 0.5919358439 | I41: 3.804420663 | K41: 1.167764553 | L41: -0.03291363611 | M41: 0.2321625637 | N41: 0.5445076559 | O41: 3.802360171 | P41: -0.1251947104 | Q41: 4.034522734 | R41: 0.4193129455 | S41: 4.056254065
A42: 0.4 | B42: 0.3683803168 | C42: 0.153859752 | D42: 0.3992203416 | E42: 4.860121332 | H42: 0.5639086383 | I42: 3.804870221 | K42: 1.175154426 | L42: -0.03320721554 | M42: 0.2173307174 | N42: 0.5203463381 | O42: 3.802772563 | P42: -0.1263259256 | Q42: 4.02010328 | R42: 0.3940204126 | S42: 4.039366592
A43: 0.41 | B43: 0.3783326279 | C43: 0.154835203 | D43: 0.4087903098 | E43: 4.859913321 | H43: 0.5378149695 | I43: 3.805195936 | K43: 1.182335503 | L43: -0.03348949659 | M43: 0.2037051465 | N43: 0.4977440654 | O43: 3.803062283 | P43: -0.1274102771 | Q43: 4.00676743 | R43: 0.3703337883 | S43: 4.023845468
A44: 0.42 | B44: 0.3882901858 | C44: 0.1557555509 | D44: 0.4183647452 | E44: 4.859781225 | H44: 0.5134804471 | I44: 3.805402801 | K44: 1.189314619 | L44: -0.03376109412 | M44: 0.191166753 | N44: 0.4765684023 | O44: 3.803234286 | P44: -0.1284501574 | Q44: 3.994401039 | R44: 0.3481182449 | S44: 4.009541866
A45: 0.43 | B45: 0.3982524238 | C45: 0.1566237754 | D45: 0.4279439217 | E45: 4.859722034 | H45: 0.4907500434 | I45: 3.8054955 | K45: 1.196098483 | L45: -0.03402258285 | M45: 0.1796102729 | N45: 0.456700947 | O45: 3.803293213 | P45: -0.1294478091 | Q45: 3.982903486 | R45: 0.3272531378 | S45: 3.996325161
A46: 0.44 | B46: 0.4082188388 | C46: 0.1574426606 | D46: 0.4375280696 | E46: 4.859732936 | H46: 0.4694855504 | I46: 3.805478426 | K46: 1.202693655 | L46: -0.03427450018 | M46: 0.1689424274 | N46: 0.4380355445 | O46: 3.803243419 | P46: -0.1304053354 | Q46: 3.972185846 | R46: 0.3076302091 | S46: 3.984080414
A47: 0.45 | B47: 0.4181889835 | C47: 0.1582148091 | D47: 0.4471173803 | E47: 4.859811299 | H47: 0.4495634206 | I47: 3.805355703 | K47: 1.209106538 | L47: -0.03451734886 | M47: 0.1590803532 | N47: 0.4204767656 | O47: 3.803088987 | P47: -0.131324709 | Q47: 3.96216934 | R47: 0.2891520566 | S47: 3.972706231
A48: 0.46 | B48: 0.4281624603 | C48: 0.1589426557 | D48: 0.4567120102 | E48: 4.859954661 | H48: 0.4308729263 | I48: 3.805131201 | K48: 1.215343356 | L48: -0.03475159945 | M48: 0.1499502655 | N48: 0.4039386049 | O48: 3.802833754 | P48: -0.132207781 | Q48: 3.952784019 | R48: 0.2717308239 | S48: 3.962112964
A49: 0.47 | B49: 0.438138915 | C49: 0.1596284787 | D49: 0.4663120844 | E49: 4.860160715 | H49: 0.4133145848 | I49: 3.804808559 | K49: 1.221410157 | L49: -0.03497769263 | M49: 0.1414863149 | N49: 0.3883433645 | O49: 3.80248132 | P49: -0.1330562894 | Q49: 3.943967635 | R49: 0.2552870751 | S49: 3.952221173
A50: 0.48 | B50: 0.4481180317 | C50: 0.1602744119 | D50: 0.4759177003 | E50: 4.8604273 | H50: 0.3967988059 | I50: 3.804391197 | K50: 1.227312797 | L50: -0.03519604132 | M50: 0.133629607 | N50: 0.3736206907 | O50: 3.802035074 | P50: -0.1338718666 | Q50: 3.935664681 | R50: 0.2397488241 | S50: 3.942960306
A51: 0.49 | B51: 0.4580995288 | C51: 0.1608824546 | D51: 0.4855289306 | E51: 4.86075239 | H51: 0.381244727 | I51: 3.803882334 | K51: 1.233056946 | L51: -0.03540703269 | M51: 0.1263273589 | N51: 0.359706742 | O51: 3.8014982 | P51: -0.1346560466 | Q51: 3.927825558 | R51: 0.2250506954 | S51: 3.934267585
A52: 0.5 | B52: 0.4680831546 | C52: 0.1614544815 | D52: 0.4951458262 | E52: 4.861134083 | H52: 0.3665792058 | I52: 3.803285001 | K52: 1.238648083 | L52: -0.03561102994 | M52: 0.1195321711 | N52: 0.3465434666 | O52: 3.800873696 | P52: -0.1354102718 | Q52: 3.920405867 | R52: 0.2111331948 | S52: 3.926087033
A53: 0.51 | B53: 0.4780686843 | C53: 0.1619922515 | D53: 0.5047684187 | E53: 4.861570594 | H53: 0.3527359475 | I53: 3.802602052 | K53: 1.244091497 | L53: -0.03580837405 | M53: 0.1132013974 | N53: 0.3340779734 | O53: 3.800164389 | P53: -0.1361358992 | Q53: 3.913365787 | R53: 0.1979420742 | S53: 3.918368646
A54: 0.52 | B54: 0.4880559166 | C54: 0.162497416 | D54: 0.5143967223 | E54: 4.862060245 | H54: 0.3396547448 | I54: 3.801836182 | K54: 1.24939229 | L54: -0.0359993853 | M54: 0.1072965981 | N54: 0.322261983 | O54: 3.799372942 | P54: -0.1368342059 | Q54: 3.90666954 | R54: 0.1854277771 | S54: 3.911067675
A55: 0.53 | B55: 0.4980446712 | C55: 0.1629715264 | D55: 0.5240307367 | E55: 4.862601459 | H55: 0.3272808159 | I55: 3.80098993 | K55: 1.254555379 | L55: -0.03618436472 | M55: 0.1017830642 | N55: 0.3110513467 | O55: 3.798501868 | P55: -0.137506395 | Q55: 3.900284932 | R55: 0.1735449518 | S55: 3.904144004
A56: 0.54 | B56: 0.5080347867 | C56: 0.1634160411 | D56: 0.5336704479 | E56: 4.863192751 | H56: 0.3155642253 | I56: 3.800065698 | K56: 1.2595855 | L56: -0.03636359546 | M56: 0.09662940232 | N56: 0.3004056239 | O56: 3.797553541 | P56: -0.1381536001 | Q56: 3.894182943 | R56: 0.1622520238 | S56: 3.897561611
A57: 0.55 | B57: 0.518026118 | C57: 0.1638323323 | D57: 0.5433158308 | E57: 4.863832724 | H57: 0.3044593755 | I57: 3.799065754 | K57: 1.264487211 | L57: -0.03653734402 | M57: 0.09180717133 | N57: 0.2902877101 | O57: 3.796530203 | P57: -0.1387768903 | Q57: 3.888337374 | R57: 0.1515108198 | S57: 3.891288098
A58: 0.56 | B58: 0.5280185351 | C58: 0.1642216913 | D58: 0.5529668501 | E58: 4.864520061 | H58: 0.293924561 | I58: 3.797992245 | K58: 1.269264901 | L58: -0.03670586135 | M58: 0.08729056453 | N58: 0.2806635083 | O58: 3.795433977 | P58: -0.1393772742 | Q58: 3.882724541 | R58: 0.1412862341 | S58: 3.885294283
A59: 0.57 | B59: 0.5380119211 | C59: 0.1645853349 | D59: 0.5626234617 | E59: 4.86525352 | H59: 0.283921574 | I59: 3.796847203 | K59: 1.273922789 | L59: -0.03686938395 | M59: 0.08305612994 | N59: 0.2715016381 | O59: 3.794266871 | P59: -0.1399557042 | Q59: 3.877323001 | R59: 0.1315459339 | S59: 3.879553838
A60: 0.58 | B60: 0.5480061709 | C60: 0.1649244098 | D60: 0.5722856142 | E60: 4.866031928 | H60: 0.2744153577 | I60: 3.795632554 | K60: 1.278464933 | L60: -0.03702813486 | M60: 0.07908252416 | N60: 0.2627731777 | O60: 3.793030788 | P60: -0.1405130797 | Q60: 3.872113312 | R60: 0.122260098 | S60: 3.874042983
A61: 0.59 | B61: 0.5580011898 | C61: 0.1652399977 | D61: 0.5819532496 | E61: 4.86685418 | H61: 0.2653736977 | I61: 3.794350123 | K61: 1.282895236 | L61: -0.03718232449 | M61: 0.07535029528 | N61: 0.2544514344 | O61: 3.791727533 | P61: -0.1410502513 | Q61: 3.867077828 | R61: 0.113401183 | S61: 3.868740203
A62: 0.6 | B62: 0.5679968929 | C62: 0.1655331194 | D62: 0.5916263043 | E62: 4.867719229 | H62: 0.2567669494 | I62: 3.793001645 | K62: 1.287217447 | L62: -0.03733215155 | M62: 0.0718416909 | N62: 0.2465117395 | O62: 3.790358818 | P62: -0.1415680232 | Q62: 3.862200509 | R62: 0.1049437163 | S62: 3.863626012
A63: 0.61 | B63: 0.5779932034 | C63: 0.1658047391 | D63: 0.6013047103 | E63: 4.868626086 | H63: 0.2485677948 | I63: 3.791588766 | K63: 1.291435172 | L63: -0.03747780374 | M63: 0.06854048815 | N63: 0.2389312664 | O63: 3.788926272 | P63: -0.1420671566 | Q63: 3.85746676 | R63: 0.09686410982 | S63: 3.858682736
A64: 0.62 | B64: 0.5879900521 | C64: 0.1660557681 | D64: 0.6109883955 | E64: 4.869573815 | H64: 0.2407510265 | I64: 3.790113052 | K64: 1.295551874 | L64: -0.03761945855 | M64: 0.06543184278 | N64: 0.2316888662 | O64: 3.787431439 | P64: -0.1425483723 | Q64: 3.852863282 | R64: 0.0891404939 | S64: 3.853894329
A65: 0.63 | B65: 0.5979873767 | C65: 0.1662870679 | D65: 0.6206772847 | E65: 4.87056153 | H65: 0.2332933547 | I65: 3.788575992 | K65: 1.299570884 | L65: -0.03775728384 | M65: 0.06250215509 | N65: 0.2247649215 | O65: 3.785875793 | P65: -0.1430123534 | Q65: 3.848377948 | R65: 0.08175256811 | S65: 3.8492462
A66: 0.64 | B66: 0.6079851211 | C66: 0.1664994538 | D66: 0.6303712998 | E66: 4.87158839 | H66: 0.2261732337 | I66: 3.786979007 | K66: 1.303495401 | L66: -0.0378914385 | M66: 0.0597389505 | N66: 0.2181412144 | O66: 3.784260734 | P66: -0.1434597474 | Q66: 3.843999684 | R66: 0.07468146698 | S66: 3.844725074
A67: 0.65 | B67: 0.6179832344 | C67: 0.1666936978 | D67: 0.6400703609 | E67: 4.872653598 | H67: 0.2193707079 | I67: 3.785323448 | K67: 1.307328501 | L67: -0.03802207305 | M67: 0.057130773 | N67: 0.211800808 | O67: 3.782587599 | P67: -0.1438911688 | Q67: 3.839718372 | R67: 0.06790963925 | S67: 3.840318853
A68: 0.66 | B68: =(Q67/S67)*A$3+B67 -> 0.6279816708 | C68: =(R67/S67)*A$3+C67 -> 0.1668705311 | D68: =SQRT(B68^2+C68^2) -> 0.6497743862 | E68: =SQRT((SIN(K68)*D68)^2 + (5-COS(K68)*D68)^2) -> 4.8737564 | H68: =$F$2*$J$2/(D68^2) -> 0.2128672727 | I68: =$G$2*$J$2/(E68^2) -> 3.783610607 | K68: =ATAN(B68/C68) -> 1.311073139 | L68: =-ATAN(C68/(5-B68)) -> -0.03814933009 | M68: =COS(K68)*H68 -> 0.05466708999 | N68: =SIN(K68)*H68 -> 0.2057279394 | O68: =COS(L68)*I68 -> 3.780857661 | P68: =SIN(L68)*I68 -> -0.1443072006 | Q68: =M68+O68 -> 3.835524751 | R68: =N68+P68 -> 0.06142073879 | S68: =SQRT(Q68^2+R68^2) -> 3.836016505
A69: 0.67 | B69: 0.6379803888 | C69: 0.1670306471 | D69: 0.6594832929 | E69: 4.874896075 | H69: 0.206645749 | I69: 3.781841714 | K69: 1.314732156 | L69: -0.03827334486 | M69: 0.05233820711 | N69: 0.199907923 | O69: 3.779072138 | P69: -0.1447083968 | Q69: 3.831410346 | R69: 0.0551995262 | S69: 3.831807958
A70: 0.68 | B70: 0.6479793512 | C70: 0.1671747031 | D70: 0.6691969971 | E70: 4.876071943 | H70: 0.2006901716 | I70: 3.780017947 | K70: 1.318308283 | L70: -0.03839424568 | M70: 0.05013519188 | N70: 0.1943270632 | O70: 3.777232193 | P70: -0.1450952837 | Q70: 3.827367385 | R70: 0.04923177956 | S70: 3.827684008
A71: 0.69 | B71: 0.657978524 | C71: 0.1673033234 | D71: 0.6789154145 | E71: 4.877283353 | H71: 0.1949856868 | I71: 3.778140433 | K71: 1.321804146 | L71: -0.03851215435 | M71: 0.04804980522 | N71: 0.1889725755 | O71: 3.775338937 | P71: -0.1454683618 | Q71: 3.823388742 | R71: 0.04350421368 | S71: 3.823636239
A72: 0.7 | B72: 0.6679778767 | C72: 0.1674171005 | D72: 0.6886384605 | E72: 4.878529689 | H72: 0.1895184616 | I72: 3.776210249 | K72: 1.325222268 | L72: -0.03862718657 | M72: 0.04607443985 | N72: 0.1838325142 | O72: 3.773393434 | P72: -0.1458281075 | Q72: 3.819467874 | R72: 0.03800440672 | S72: 3.819656944
A73: 0.71 | B73: 0.6779773817 | C73: 0.1675165974 | D73: 0.6983660505 | E73: 4.879810362 | H73: 0.1842755997 | I73: 3.774228428 | K73: 1.328565076 | L73: -0.03873945231 | M73: 0.04420206484 | N73: 0.1788957074 | O73: 3.771396704 | P73: -0.1461749739 | Q73: 3.815598769 | R73: 0.03272073347 | S73: 3.815739065
A74: 0.72 | B74: 0.687977014 | C74: 0.1676023494 | D74: 0.7080981001 | E74: 4.881124811 | H74: 0.1792450673 | I74: 3.772195959 | K74: 1.331834907 | L74: -0.03884905614 | M74: 0.04242617568 | N74: 0.1741516975 | O74: 3.769349726 | P74: -0.1465093929 | Q74: 3.811775901 | R74: 0.02764230463 | S74: 3.811876129
A75: 0.73 | B75: 0.6979767511 | C75: 0.1676748657 | D75: 0.7178345252 | E75: 4.882472504 | H75: 0.174415624 | I75: 3.770113794 | K75: 1.335034005 | L75: -0.03895609753 | M75: 0.04074074917 | N75: 0.1695906874 | O75: 3.767253436 | P75: -0.146831776 | Q75: 3.807994185 | R75: 0.02275891147 | S75: 3.808062195
A76: 0.74 | B76: 0.7079765725 | C76: 0.1677346308 | D76: 0.7275752425 | E76: 4.883852928 | H76: 0.1697767617 | I76: 3.767982844 | K76: 1.338164531 | L76: -0.03906067119 | M76: 0.03914020265 | N76: 0.1652034907 | O76: 3.765108736 | P76: -0.1471425155 | Q76: 3.804248939 | R76: 0.01806097524 | S76: 3.804291812
A77: 0.75 | B77: 0.7179764598 | C77: 0.167782106 | D77: 0.7373201692 | E77: 4.885265599 | H77: 0.1653186473 | I77: 3.765803987 | K77: 1.341228564 | L77: -0.03916286732 | M77: 0.03761935719 | N77: 0.1609814868 | O77: 3.762916492 | P77: -0.1474419858 | Q77: 3.80053585 | R77: 0.01353950105 | S77: 3.800559967
A78: 0.76 | B78: 0.7279763963 | C78: 0.167817731 | D78: 0.7470692233 | E78: 4.88671005 | H78: 0.1610320718 | I78: 3.763578065 | K78: 1.344228105 | L78: -0.03926277187 | M78: 0.03617340411 | N78: 0.1569165797 | O78: 3.760677538 | P78: -0.1477305441 | Q78: 3.796850942 | R78: 0.009186035537 | S78: 3.796862054
A79: 0.77 | B79: 0.7379763671 | C79: 0.1678419248 | D79: 0.756822324 | E79: 4.888185838 | H79: 0.1569084034 | I79: 3.761305892 | K79: 1.347165081 | L79: -0.0393604668 | M79: 0.03479787475 | N79: 0.15300116 | O79: 3.758392674 | P79: -0.1480085318 | Q79: 3.793190548 | R79: 0.004992628172 | S79: 3.793193834
A80: 0.78 | B80: 0.7479763584 | C80: 0.1678550869 | D80: 0.7665793911 | E80: 4.889692536 | H80: 0.1529395445 | I80: 3.75898825 | K80: 1.350041346 | L80: -0.03945603025 | M80: 0.03348861295 | N80: 0.1492280706 | O80: 3.756062673 | P80: -0.1482762749 | Q80: 3.789551286 | R80: 0.0009517957363 | S80: 3.789551406
A81: 0.79 | B81: 0.7579763581 | C81: 0.1678575985 | D81: 0.776340346 | E81: 4.891229738 | H81: 0.1491178927 | I81: 3.756625892 | K81: 1.352858688 | L81: -0.03954953685 | M81: 0.03224175001 | N81: 0.1455905748 | O81: 3.753688282 | P81: -0.1485340851 | Q81: 3.785930032 | R81: -0.002943510307 | S81: 3.785931176
A82: 0.8 | B82: 0.7679763551 | C82: 0.1678498236 | D82: 0.7861051108 | E82: 4.892797054 | H82: 0.1454363048 | I82: 3.754219548 | K82: 1.355618825 | L82: -0.0396410578 | M82: 0.03105368197 | N82: 0.1420823268 | O82: 3.751270219 | P82: -0.1487822606 | Q82: 3.782323901 | R82: -0.00669993379 | S82: 3.782329835
A83: 0.81 | B83: 0.7779763394 | C83: 0.1678321099 | D83: 0.7958736091 | E83: 4.89439411 | H83: 0.1418880641 | I83: 3.751769921 | K83: 1.358323416 | L83: -0.03973066116 | M83: 0.02992104889 | N83: 0.1386973452 | O83: 3.748809178 | P83: -0.1490210867 | Q83: 3.778730227 | R83: -0.01032374144 | S83: 3.778744329
A84: 0.82 | B84: 0.7879763021 | C84: 0.1678047893 | D84: 0.8056457658 | E84: 4.896020548 | H84: 0.1384668503 | I84: 3.749277689 | K84: 1.360974059 | L84: -0.03981841195 | M84: 0.02884071588 | N84: 0.1354299883 | O84: 3.746305831 | P84: -0.1492508366 | Q84: 3.775146547 | R84: -0.01382084829 | S84: 3.775171846
A85: 0.83 | B85: 0.797976235 | C85: 0.1677681795 | D85: 0.8154215068 | E85: 4.897676024 | H85: 0.1351667114 | I85: 3.746743511 | K85: 1.363572293 | L85: -0.03990437235 | M85: 0.02780975594 | N85: 0.1322749309 | O85: 3.743760827 | P85: -0.149471772 | Q85: 3.771570583 | R85: -0.01719684112 | S85: 3.771609788
A86: 0.84 | B86: 0.8079761311 | C86: 0.167722584 | D86: 0.8252007596 | E86: 4.899360209 | H86: 0.1319820389 | I86: 3.744168023 | K86: 1.366119603 | L86: -0.03998860183 | M86: 0.0268254341 | N86: 0.1292271437 | O86: 3.741174794 | P86: -0.1496841438 | Q86: 3.768000228 | R86: -0.0204570001 | S86: 3.76805576
A87: 0.85 | B87: 0.8179759837 | C87: 0.1676682934 | D87: 0.8349834529 | E87: 4.901072784 | H87: 0.1289075437 | I87: 3.741551841 | K87: 1.368617421 | L87: -0.04007115731 | M87: 0.02588519303 | N87: 0.1262818736 | O87: 3.738548343 | P87: -0.1498881924 | Q87: 3.764433536 | R87: -0.02360631874 | S87: 3.764507551
A88: 0.86 | B88: 0.8279757871 | C88: 0.1676055858 | D88: 0.8447695167 | E88: 4.902813445 | H88: 0.1259382352 | I88: 3.738895563 | K88: 1.371067126 | L88: -0.04015209328 | M88: 0.02498663985 | N88: 0.123434626 | O88: 3.735882062 | P88: -0.1500841485 | Q88: 3.760868701 | R88: -0.02664952242 | S88: 3.760963119
A89: 0.87 | B89: 0.8379755361 | C89: 0.1675347275 | D89: 0.8545588827 | E89: 4.904581899 | H89: 0.1230694006 | I89: 3.736199768 | K89: 1.373470051 | L89: -0.04023146195 | M89: 0.02412753401 | N89: 0.120681148 | O89: 3.733176524 | P89: -0.1502722334 | Q89: 3.757304058 | R89: -0.02959108545 | S89: 3.75742058
A90: 0.88 | B90: 0.8479752259 | C90: 0.1674559738 | D90: 0.8643514835 | E90: 4.906377864 | H90: 0.1202965875 | I90: 3.733465019 | K90: 1.375827481 | L90: -0.04030931333 | M90: 0.02330577617 | N90: 0.118017413 | O90: 3.730432286 | P90: -0.1504526599 | Q90: 3.753738063 | R90: -0.03243524694 | S90: 3.753878193
A91: 0.89 | B91: 0.8579748526 | C91: 0.1673695692 | D91: 0.8741472533 | E91: 4.908201068 | H91: 0.117615586 | I91: 3.730691863 | K91: 1.378140658 | L91: -0.04038569536 | M91: 0.02251939805 | N91: 0.1154396066 | O91: 3.727649889 | P91: -0.1506256321 | Q91: 3.750169287 | R91: -0.03518602548 | S91: 3.75033435
A92: 0.9 | B92: 0.8679744125 | C92: 0.1672757481 | D92: 0.8839461277 | E92: 4.91005125 | H92: 0.1150224134 | I92: 3.727880831 | K92: 1.380410778 | L92: -0.04046065404 | M92: 0.02176655303 | N92: 0.1129441134 | O92: 3.724829856 | P92: -0.1507913462 | Q92: 3.746596409 | R92: -0.03784723276 | S92: 3.746787566
A93: 0.91 | B93: 0.8779739023 | C93: 0.1671747357 | D93: 0.8937480436 | E93: 4.911928156 | H93: 0.1125133001 | I93: 3.72503244 | K93: 1.382638998 | L93: -0.04053423348 | M93: 0.02104550754 | N93: 0.1105275047 | O93: 3.7219727 | P93: -0.150949991 | Q93: 3.743018207 | R93: -0.04042248623 | S93: 3.743236471
A94: 0.92 | B94: 0.8879733192 | C94: 0.1670667476 | D94: 0.9035529391 | E94: 4.913831544 | H94: 0.1100846752 | I94: 3.722147193 | K94: 1.384826435 | L94: -0.04060647603 | M94: 0.02035463319 | N94: 0.108186527 | O94: 3.719078917 | P94: -0.1511017479 | Q94: 3.73943355 | R94: -0.0429152209 | S94: 3.739679798
A95: 0.93 | B95: 0.8979726608 | C95: 0.1669519912 | D95: 0.9133607539 | E95: 4.915761178 | H95: 0.1077331549 | I95: 3.719225582 | K95: 1.386974168 | L95: -0.04067742234 | M95: 0.01969239936 | N95: 0.1059180913 | O95: 3.716148993 | P95: -0.1512467915 | Q95: 3.735841392 | R95: -0.04532870021 | S95: 3.736116379
A96: 0.94 | B96: 0.9079719247 | C96: 0.1668306655 | D96: 0.9231714289 | E96: 4.917716831 | H96: 0.1054555306 | I96: 3.716268083 | K96: 1.38908324 | L96: -0.04074711146 | M96: 0.01905736658 | N96: 0.1037192639 | O96: 3.713183399 | P96: -0.1513852902 | Q96: 3.732240766 | R96: -0.04766602627 | S96: 3.732545135
A97: 0.95 | B97: 0.9179711093 | C97: 0.1667029617 | D97: 0.9329849061 | E97: 4.919698285 | H97: 0.1032487579 | I97: 3.713275163 | K97: 1.391154659 | L97: -0.04081558094 | M97: 0.01844818026 | N97: 0.1015872563 | O97: 3.710182598 | P97: -0.1515174057 | Q97: 3.728630778 | R97: -0.04993014932 | S97: 3.728965071
A98: 0.96 | B98: 0.9279702128 | C98: 0.1665690635 | D98: 0.942801129 | E98: 4.921705328 | H98: 0.1011099471 | I98: 3.710247277 | K98: 1.393189399 | L98: -0.04088286683 | M98: 0.01786356495 | N98: 0.09951941749 | O98: 3.707147039 | P98: -0.1516432941 | Q98: 3.725010604 | R98: -0.05212387659 | S98: 3.725375269
A99: 0.97 | B99: 0.937969234 | C99: 0.1664291477 | D99: 0.9526200423 | E99: 4.923737754 | H99: 0.0990363537 | I99: 3.707184869 | K99: 1.395188401 | L99: -0.04094900383 | M99: 0.01730231909 | N99: 0.0975132253 | O99: 3.704077161 | P99: -0.1517631058 | Q99: 3.72137948 | R99: -0.05424988052 | S99: 3.721774883
A100: 0.98 | B100: 0.9479681715 | C100: 0.1662833843 | D100: 0.9624415921 | E100: 4.925795365 | H100: 0.09702536953 | I100: 3.704088374 | K100: 1.397152577 | L100: -0.0410140253 | M100: 0.01676331004 | N100: 0.09556627946 | O100: 3.700973394 | P100: -0.1518769859 | Q100: 3.717736704 | R100: -0.05631070648 | S100: 3.718163134
A101: 0.99 | B101: 0.9579670247 | C101: 0.1661319366 | D101: 0.9722657254 | E101: 4.927877969 | H101: 0.09507451506 | I101: 3.700958215 | K101: 1.399082808 | L101: -0.04107796337 | M101: 0.01624546963 | N101: 0.09367629439 | O101: 3.697836158 | P101: -0.1519850743 | Q101: 3.714081627 | R101: -0.05830877994 | S101: 3.714539305
A102: 1 | B102: 0.9679657925 | C102: 0.1659749622 | D102: 0.9820923906 | E102: 4.929985379 | H102: 0.09318143172 | I102: 3.69779481 | K102: 1.400979947 | L102: -0.04114084893 | M102: 0.01574778987 | N102: 0.09184109283 | O102: 3.694665864 | P102: -0.1520875061 | Q102: 3.710413654 | R102: -0.06024641322 | S102: 3.710902735
A103: 1.01 | B103: 0.9779644746 | C103: 0.1658126124 | D103: 0.9919215372 | E103: 4.932117417 | H103: 0.09134387495 | I103: 3.694598563 | K103: 1.402844819 | L103: -0.04120271176 | M103: 0.01526931916 | N103: 0.09005859972 | O103: 3.691462914 | P103: -0.1521844115 | Q103: 3.706732233 | R103: -0.06212581177 | S103: 3.707252819
A104: 1.02 | B104: 0.9879630703 | C104: 0.1656450333 | D104: 1.001753116 | E104: 4.934273905 | H104: 0.08955970763 | I104: 3.691369874 | K104: 1.404678223 | L104: -0.04126358054 | M104: 0.01480915858 | N104: 0.08832683654 | O104: 3.688227703 | P104: -0.1522759165 | Q104: 3.703036861 | R104: -0.06394908001 | S104: 3.703589
A105: 1.03 | B105: 0.9979615795 | C105: 0.1654723654 | D105: 1.011587079 | E105: 4.936454676 | H105: 0.08782689405 | I105: 3.688109132 | K105: 1.406480931 | L105: -0.04132348289 | M105: 0.01436645862 | N105: 0.08664391603 | O105: 3.684960617 | P105: -0.1523621429 | Q105: 3.699327075 | R105: -0.0657182269 | S105: 3.699910769
A106: 1.04 | B106: 1.007960002 | C106: 0.1652947443 | D106: 1.021423378 | E106: 4.938659563 | H106: 0.08614349414 | I106: 3.684816721 | K106: 1.408253694 | L106: -0.04138244544 | M106: 0.01394041603 | N106: 0.08500803717 | O106: 3.681662034 | P106: -0.1524432082 | Q106: 3.69560245 | R106: -0.06743517106 | S106: 3.696217658
A107: 1.05 | B107: 1.017958338 | C107: 0.1651123006 | D107: 1.031261969 | E107: 4.940888406 | H107: 0.08450765818 | I107: 3.681493016 | K107: 1.409997237 | L107: -0.04144049389 | M107: 0.01353027095 | N107: 0.08341748054 | O107: 3.678332327 | P107: -0.1525192262 | Q107: 3.691862598 | R107: -0.06910174564 | S107: 3.692509241
A108: 1.06 | B108: 1.027956586 | C108: 0.1649251603 | D108: 1.041102806 | E108: 4.943141051 | H108: 0.08291762182 | I108: 3.678138385 | K108: 1.411712261 | L108: -0.04149765301 | M108: 0.01313530421 | N108: 0.08187060396 | O108: 3.674971861 | P108: -0.1525903068 | Q108: 3.688107165 | R108: -0.07071970284 | S108: 3.68878513
A109: 1.07 | B109: 1.037954748 | C109: 0.1647334448 | D109: 1.050945844 | E109: 4.945417345 | H109: 0.0813717014 | I109: 3.674753191 | K109: 1.413399449 | L109: -0.04155394669 | M109: 0.01275483485 | N109: 0.08036583837 | O109: 3.671580993 | P109: -0.1526565566 | Q109: 3.684335828 | R109: -0.07229071818 | S109: 3.685044972
A110: 1.08 | B110: 1.047952824 | C110: 0.1645372716 | D110: 1.060791042 | E110: 4.947717142 | H110: 0.07986828957 | I110: 3.671337789 | K110: 1.415059461 | L110: -0.041609398 | M110: 0.01238821778 | N110: 0.078901684 | O110: 3.668160077 | P110: -0.1527180785 | Q110: 3.680548295 | R110: -0.07381639449 | S110: 3.681288444
A111: 1.09 | B111: 1.057950813 | C111: 0.1643367538 | D111: 1.070638357 | E111: 4.950040298 | H111: 0.07840585118 | I111: 3.667892528 | K111: 1.416692936 | L111: -0.04166402923 | M111: 0.01203484162 | N111: 0.07747670673 | O111: 3.664709457 | P111: -0.1527749724 | Q111: 3.676744299 | R111: -0.07529826569 | S111: 3.677515258
A112: 1.1 | B112: 1.067948717 | C112: 0.1641320007 | D112: 1.080487749 | E112: 4.952386674 | H112: 0.07698291946 | I112: 3.664417753 | K112: 1.418300495 | L112: -0.04171786187 | M112: 0.01169412666 | N112: 0.0760895347 | O112: 3.661229476 | P112: -0.152827335 | Q112: 3.672923603 | R112: -0.07673780034 | S112: 3.67372515
A113: 1.11 | B113: 1.077946535 | C113: 0.1639231179 | D113: 1.090339177 | E113: 4.954756134 | H113: 0.07559809242 | I113: 3.660913801 | K113: 1.419882739 | L113: -0.0417709167 | M113: 0.01136552302 | N113: 0.07473885512 | O113: 3.657720467 | P113: -0.15287526 | Q113: 3.66908599 | R113: -0.07813640491 | S113: 3.669917888
A114: 1.12 | B114: 1.087944268 | C114: 0.1637102074 | D114: 1.100192603 | E114: 4.957148544 | H114: 0.0742500294 | I114: 3.657381006 | K114: 1.421440252 | L114: -0.04182321381 | M114: 0.01104850885 | N114: 0.07342341124 | O114: 3.654182761 | P114: -0.1529188382 | Q114: 3.66523127 | R114: -0.07949542699 | S114: 3.666093259
A115: 1.13 | B115: 1.097941917 | C115: 0.1634933678 | D115: 1.110047988 | E115: 4.959563777 | H115: 0.07293744796 | I115: 3.653819695 | K115: 1.4229736 | L115: -0.0418747726 | M115: 0.01074258873 | N115: 0.07214199957 | O115: 3.650616683 | P115: -0.1529581578 | Q115: 3.661359271 | R115: -0.08081615818 | S115: 3.662251079
A116: 1.14 | B116: 1.107939482 | C116: 0.1632726943 | D116: 1.119905294 | E116: 4.962001706 | H116: 0.07165912082 | I116: 3.65023019 | K116: 1.424483334 | L116: -0.04192561184 | M116: 0.01044729209 | N116: 0.07089346715 | O116: 3.647022552 | P116: -0.152993304 | Q116: 3.657469844 | R116: -0.08209983688 | S116: 3.658391182
A117: 1.15 | B117: 1.117936964 | C117: 0.1630482792 | D117: 1.129764487 | E117: 4.964462207 | H117: 0.0704138731 | I117: 3.646612811 | K117: 1.425969985 | L117: -0.04197574967 | M117: 0.01016217182 | N117: 0.06967670908 | O117: 3.643400683 | P117: -0.15302436 | Q117: 3.653562855 | R117: -0.08334765095 | S117: 3.654513424
A118: 1.16 | B118: 1.127934362 | C118: 0.1628202115 | D118: 1.139625529 | E118: 4.966945161 | H118: 0.06920057961 | I118: 3.642967871 | K118: 1.427434072 | L118: -0.04202520364 | M118: 0.009886802913 | N118: 0.06849066613 | O118: 3.639751389 | P118: -0.1530514062 | Q118: 3.649638192 | R118: -0.0845607401 | S118: 3.650617681
A119: 1.17 | B119: 1.137931679 | C119: 0.1625885774 | D119: 1.149488387 | E119: 4.96945045 | H119: 0.06801816242 | I119: 3.639295679 | K119: 1.428876098 | L119: -0.04207399076 | M119: 0.009620781199 | N119: 0.06733432251 | O119: 3.636074976 | P119: -0.1530745208 | Q119: 3.645695757 | R119: -0.08574019833 | S119: 3.646703845
A120: 1.18 | B120: 1.147928915 | C120: 0.1623534604 | D120: 1.159353026 | E120: 4.97197796 | H120: 0.06686558845 | I120: 3.635596541 | K120: 1.43029655 | L120: -0.04212212746 | M120: 0.009363722197 | N120: 0.06620670378 | O120: 3.632371746 | P120: -0.1530937798 | Q120: 3.641735468 | R120: -0.08688707602 | S120: 3.642771827
A121: 1.19 | B121: 1.15792607 | C121: 0.1621149413 | D121: 1.169219414 | E121: 4.974527578 | H121: 0.06574186731 | I121: 3.631870757 | K121: 1.431695903 | L121: -0.04216962966 | M121: 0.009115260003 | N121: 0.06510687485 | O121: 3.628641998 | P121: -0.1531092569 | Q121: 3.637757258 | R121: -0.08800238208 | S121: 3.638821552
A122: 1.2 | B122: 1.167923145 | C122: 0.1618730982 | D122: 1.179087517 | E122: 4.977099194 | H122: 0.06464604914 | I122: 3.628118625 | K122: 1.433074618 | L122: -0.04221651278 | M122: 0.008875046262 | N122: 0.06403393806 | O122: 3.624886028 | P122: -0.153121024 | Q122: 3.633761074 | R122: -0.0890870859 | S122: 3.634852961
A123: 1.21 | B123: 1.177920141 | C123: 0.1616280069 | D123: 1.188957304 | E123: 4.979692702 | H123: 0.06357722272 | I123: 3.62434044 | K123: 1.434433141 | L123: -0.04226279176 | M123: 0.0086427492 | N123: 0.06298703148 | O123: 3.621104125 | P123: -0.1531291507 | Q123: 3.629746875 | R123: -0.09014211919 | S123: 3.630866009
A124: 1.22 | B124: 1.187917059 | C124: 0.1613797407 | D124: 1.198828745 | E124: 4.982307995 | H124: 0.06253451353 | I124: 3.62053649 | K124: 1.435771908 | L124: -0.04230848106 | M124: 0.008418052722 | N124: 0.06196532717 | O124: 3.61729658 | P124: -0.1531337049 | Q124: 3.625714633 | R124: -0.09116837775 | S124: 3.626860663
A125: 1.23 | B125: 1.197913899 | C125: 0.1611283708 | D125: 1.208701808 | E125: 4.98494497 | H125: 0.06151708206 | I125: 3.616707064 | K125: 1.437091342 | L125: -0.04235359471 | M125: 0.008200655562 | N125: 0.0609680296 | O125: 3.613463675 | P125: -0.1531347527 | Q125: 3.621664331 | R125: -0.09216672311 | S125: 3.622836904
A126: 1.24 | B126: 1.207910663 | C126: 0.1608739659 | D126: 1.218576465 | E126: 4.987603527 | H126: 0.0605241221 | I126: 3.612852443 | K126: 1.438391854 | L126: -0.04239814631 | M126: 0.00799027048 | N126: 0.05999437419 | O126: 3.609605693 | P126: -0.1531323583 | Q126: 3.617595963 | R126: -0.09313798416 | S126: 3.618794722
A127: 1.25 | B127: 1.21790735 | C127: 0.160616593 | D127: 1.228452687 | E127: 4.990283566 | H127: 0.05955485921 | I127: 3.608972909 | K127: 1.439673843 | L127: -0.04244214904 | M127: 0.007786623521 | N127: 0.05904362582 | O127: 3.605722911 | P127: -0.1531265844 | Q127: 3.613509534 | R127: -0.09408295854 | S127: 3.61473412
A128: 1.26 | B128: 1.227903962 | C128: 0.1603563167 | D128: 1.238330444 | E128: 4.992984991 | H128: 0.05860854921 | I128: 3.605068739 | K128: 1.440937698 | L128: -0.04248561568 | M128: 0.007589453303 | N128: 0.05811507755 | O128: 3.601815605 | P128: -0.1531174917 | Q128: 3.609405058 | R128: -0.09500241417 | S128: 3.610655111
A129: 1.27 | B129: 1.2379005 | C129: 0.1600931999 | D129: 1.24820971 | E129: 4.995707706 | H129: 0.05768447676 | I129: 3.601140207 | K129: 1.442183797 | L129: -0.04252855864 | M129: 0.007398510356 | N129: 0.05720804929 | O129: 3.597884046 | P129: -0.1531051398 | Q129: 3.605282557 | R129: -0.09589709047 | S129: 3.606557717
A130: 1.28 | B130: 1.247896964 | C130: 0.1598273034 | D130: 1.258090458 | E130: 4.998451617 | H130: 0.05678195409 | I130: 3.597187585 | K130: 1.443412508 | L130: -0.04257098996 | M130: 0.007213556503 | N130: 0.05632188662 | O130: 3.593928505 | P130: -0.1530895863 | Q130: 3.601142061 | R130: -0.09676769972 | S130: 3.602441968
A131: 1.29 | B131: 1.257893356 | C131: 0.1595586865 | D131: 1.267972661 | E131: 5.001216632 | H131: 0.05590031969 | I131: 3.59321114 | K131: 1.444624189 | L131: -0.04261292131 | M131: 0.007034364269 | N131: 0.05545595965 | O131: 3.589949248 | P131: -0.1530708879 | Q131: 3.596983612 | R131: -0.09761492822 | S131: 3.598307905
A132: 1.3 | B132: =(Q131/S131)*A$3+B131 -> 1.267889676 | C132: =(R131/S131)*A$3+C131 -> 0.1592874064 | D132: =SQRT(B132^2+C132^2) -> 1.277856294 | E132: =SQRT((SIN(K132)*D132)^2 + (5-COS(K132)*D132)^2) -> 5.004002662 | H132: =$F$2*$J$2/(D132^2) -> 0.05503893713 | I132: =$G$2*$J$2/(E132^2) -> 3.58921114 | K132: =ATAN(B132/C132) -> 1.445819189 | L132: =-ATAN(C132/(5-B132)) -> -0.04265436405 | M132: =COS(K132)*H132 -> 0.006860716332 | N132: =SIN(K132)*H132 -> 0.05460966189 | O132: =COS(L132)*I132 -> 3.585946539 | P132: =SIN(L132)*I132 -> -0.1530490993 | Q132: =M132+O132 -> 3.592807255 | R132: =N132+P132 -> -0.0984394374 | S132: =SQRT(Q132^2+R132^2) -> 3.594155575
A133: 1.31 | B133: 1.277885924 | C133: 0.1590135189 | D133: 1.287741331 | E133: 5.006809618 | H133: 0.05419719395 | I133: 3.585187847 | K133: 1.446997845 | L133: -0.04269532917 | M133: 0.006692405002 | N133: 0.05378240927 | O133: 3.58192064 | P133: -0.1530242743 | Q133: 3.588613045 | R133: -0.09924186499 | S133: 3.589985032
A134: 1.32 | B134: 1.287882103 | C134: 0.158737078 | D134: 1.297627747 | E134: 5.009637411 | H134: 0.05337450056 | I134: 3.581141522 | K134: 1.448160489 | L134: -0.04273582738 | M134: 0.006529231728 | N134: 0.05297363914 | O134: 3.577871809 | P134: -0.1529964651 | Q134: 3.584401041 | R134: -0.100022826 | S134: 3.58579634
A135: 1.33 | B135: 1.297878211 | C135: 0.1584581362 | D135: 1.307515519 | E135: 5.012485957 | H135: 0.05257028926 | I135: 3.577072424 | K135: 1.449307441 | L135: -0.04277586906 | M135: 0.006371006643 | N135: 0.05218280931 | O135: 3.573800305 | P135: -0.1529657229 | Q135: 3.580171311 | R135: -0.1007829136 | S135: 3.581589565
A136: 1.34 | B136: 1.307874252 | C136: 0.1581767447 | D136: 1.317404623 | E136: 5.015355171 | H136: 0.05178401324 | I136: 3.572980809 | K136: 1.450439015 | L136: -0.04281546431 | M136: 0.006217548122 | N136: 0.05140939722 | O136: 3.56970638 | P136: -0.1529320974 | Q136: 3.575923928 | R136: -0.1015227002 | S136: 3.577364784
A137: 1.35 | B137: 1.317870224 | C137: 0.1578929528 | D137: 1.327295036 | E137: 5.01824497 | H137: 0.05101514568 | I137: 3.568866931 | K137: 1.451555515 | L137: -0.04285462294 | M137: 0.006068682375 | N137: 0.05065289905 | O137: 3.565590287 | P137: -0.1528956373 | Q137: 3.57165897 | R137: -0.1022427383 | S137: 3.573122077
A138: 1.36 | B138: 1.327866129 | C138: 0.1576068088 | D138: 1.337186734 | E138: 5.021155273 | H138: 0.0502631789 | I138: 3.564731042 | K138: 1.452657238 | L138: -0.04289335449 | M138: 0.005924243056 | N138: 0.04991282898 | O138: 3.561452277 | P138: -0.1528563903 | Q138: 3.56737652 | R138: -0.1029435613 | S138: 3.568861529
A139: 1.37 | B139: 1.337861968 | C139: 0.1573183595 | D139: 1.347079698 | E139: 5.024085998 | H139: 0.04952762351 | I139: 3.56057339 | K139: 1.453744474 | L139: -0.04293166823 | M139: 0.005784070901 | N139: 0.04918871836 | O139: 3.557292597 | P139: -0.1528144026 | Q139: 3.563076668 | R139: -0.1036256843 | S139: 3.564583233
A140: 1.38 | B140: 1.347857742 | C140: 0.1570276504 | D140: 1.356973903 | E140: 5.027037067 | H140: 0.04880800764 | I140: 3.556394223 | K140: 1.454817504 | L140: -0.04296957318 | M140: 0.005648013378 | N140: 0.04848011504 | O140: 3.553111493 | P140: -0.1527697198 | Q140: 3.558759507 | R140: -0.1042896047 | S140: 3.560287285
A141: 1.39 | B141: 1.35785345 | C141: 0.1567347257 | D141: 1.366869331 | E141: 5.030008401 | H141: 0.04810387619 | I141: 3.552193788 | K141: 1.455876603 | L141: -0.04300707811 | M141: 0.005515924362 | N141: 0.04778658267 | O141: 3.54890921 | P141: -0.1527223861 | Q141: 3.554425134 | R141: -0.1049358034 | S141: 3.555973785
A142: 1.4 | B142: 1.367849095 | C142: 0.1564396285 | D142: 1.376765959 | E142: 5.032999923 | H142: 0.04741479013 | I142: 3.547972326 | K142: 1.45692204 | L142: -0.04304419155 | M142: 0.005387663826 | N142: 0.04710770003 | O142: 3.544685988 | P142: -0.1526724449 | Q142: 3.550073652 | R142: -0.1055647449 | S142: 3.551642838
A143: 1.41 | B143: 1.377844677 | C143: 0.1561424005 | D143: 1.386663767 | E143: 5.036011557 | H143: 0.04674032582 | I143: 3.543730081 | K143: 1.457954074 | L143: -0.04308092181 | M143: 0.005263097549 | N143: 0.04644306043 | O143: 3.540442068 | P143: -0.1526199387 | Q143: 3.545705166 | R143: -0.1061768783 | S143: 3.547294554
A144: 1.42 | B144: 1.387840197 | C144: 0.1558430826 | D144: 1.396562737 | E144: 5.039043228 | H144: 0.04608007436 | I144: 3.53946729 | K144: 1.458972961 | L144: -0.04311727698 | M144: 0.005142096841 | N144: 0.04579227111 | O144: 3.536177689 | P144: -0.152564909 | Q144: 3.541319786 | R144: -0.1067726379 | S144: 3.542929045
A145: 1.43 | B145: 1.397835654 | C145: 0.1555417144 | D145: 1.406462848 | E145: 5.042094862 | H145: 0.045433641 | I145: 3.535184193 | K145: 1.459978948 | L145: -0.0431532649 | M145: 0.005024538276 | N145: 0.04515495266 | O145: 3.531893086 | P145: -0.1525073964 | Q145: 3.536917624 | R145: -0.1073524437 | S145: 3.538546429
A146: 1.44 | B146: 1.407831051 | C146: 0.1552383343 | D146: 1.416364081 | E146: 5.045166386 | H146: 0.04480064454 | I146: 3.530881025 | K146: 1.460972278 | L146: -0.04318889326 | M146: 0.004910303451 | N146: 0.0445307385 | O146: 3.527588495 | P146: -0.1524474405 | Q146: 3.532498799 | R146: -0.107916702 | S146: 3.534146824
A147: 1.45 | B147: 1.417826388 | C147: 0.15493298 | D147: 1.426266418 | E147: 5.048257729 | H147: 0.0441807168 | I147: 3.526558021 | K147: 1.461953188 | L147: -0.0432241695 | M147: 0.00479927875 | N147: 0.04391927436 | O147: 3.523264149 | P147: -0.1523850804 | Q147: 3.528063427 | R147: -0.108465806 | S147: 3.529730355
A148: 1.46 | B148: 1.427821666 | C148: 0.1546256879 | D148: 1.436169841 | E148: 5.051368818 | H148: 0.04357350206 | I148: 3.522215413 | K148: 1.462921906 | L148: -0.0432591009 | M148: 0.004691355117 | N148: 0.04332021779 | O148: 3.518920278 | P148: -0.1523203541 | Q148: 3.523611633 | R148: -0.1090001363 | S148: 3.525297147
A149: 1.47 | B149: 1.437816884 | C149: 0.1543164938 | D149: 1.446074332 | E149: 5.054499583 | H149: 0.04297865659 | I149: 3.517853432 | K149: 1.463878659 | L149: -0.04329369452 | M149: 0.004586427852 | N149: 0.04273323767 | O149: 3.514557113 | P149: -0.1522532989 | Q149: 3.519143541 | R149: -0.1095200613 | S149: 3.520847328
A150: 1.48 | B150: 1.447812045 | C150: 0.1540054321 | D150: 1.455979873 | E150: 5.057649955 | H150: 0.04239584815 | I150: 3.513472308 | K150: 1.464823665 | L150: -0.04332795728 | M150: 0.004484396407 | N150: 0.04215801382 | O150: 3.510174882 | P150: -0.1521839515 | Q150: 3.514659279 | R150: -0.1100259377 | S150: 3.51638103
A151: 1.49 | B151: 1.457807149 | C151: 0.1536925367 | D151: 1.465886448 | E151: 5.060819866 | H151: 0.04182475554 | I151: 3.509072268 | K151: 1.465757139 | L151: -0.04336189589 | M151: 0.004385164202 | N151: 0.04159423651 | O151: 3.505773812 | P151: -0.1521123476 | Q151: 3.510158976 | R151: -0.1105181111 | S151: 3.511898388
A152: 1.5 | B152: 1.467802196 | C152: 0.1533778405 | D152: 1.47579404 | E152: 5.064009246 | H152: 0.04126506817 | I152: 3.504653539 | K152: 1.466679289 | L152: -0.04339551691 | M152: 0.004288638436 | N152: 0.0410416061 | O152: 3.501354126 | P152: -0.1520385223 | Q152: 3.505642765 | R152: -0.1109969162 | S152: 3.507399537
A153: 1.51 | B153: 1.477797187 | C153: 0.1530613755 | D153: 1.485702632 | E153: 5.067218029 | H153: 0.04071648563 | I153: 3.500216346 | K153: 1.46759032 | L153: -0.04342882672 | M153: 0.004194729928 | N153: 0.04049983262 | O153: 3.496916051 | P153: -0.1519625102 | Q153: 3.501110781 | R153: -0.1114626775 | S153: 3.502884615
A154: 1.52 | B154: 1.487792123 | C154: 0.152743173 | D154: 1.495612209 | E154: 5.070446149 | H154: 0.04017871729 | I154: 3.495760912 | K154: 1.468490431 | L154: -0.04346183155 | M154: 0.004103352948 | N154: 0.03996863543 | O154: 3.492459806 | P154: -0.1518843448 | Q154: 3.496563159 | R154: -0.1119157094 | S154: 3.498353763
A155: 1.53 | B155: 1.497787005 | C155: 0.1524232633 | D155: 1.505522754 | E155: 5.073693539 | H155: 0.03965148197 | I155: 3.491287458 | K155: 1.469379816 | L155: -0.04349453748 | M155: 0.004014425063 | N155: 0.03944774282 | O155: 3.487985613 | P155: -0.1518040594 | Q155: 3.492000038 | R155: -0.1123563166 | S155: 3.493807123
A156: 1.54 | B156: 1.507781833 | C156: 0.1521016763 | D156: 1.515434253 | E156: 5.076960135 | H156: 0.0391345075 | I156: 3.486796205 | K156: 1.470258666 | L156: -0.04352695044 | M156: 0.003927866998 | N156: 0.03893689173 | O156: 3.483493692 | P156: -0.1517216865 | Q156: 3.487421559 | R156: -0.1127847947 | S156: 3.489244838
A157: 1.55 | B157: 1.517776607 | C157: 0.1517784407 | D157: 1.52534669 | E157: 5.080245872 | H157: 0.03862753042 | I157: 3.482287372 | K157: 1.471127165 | L157: -0.04355907621 | M157: 0.003843602491 | N157: 0.03843582738 | O157: 3.47898426 | P157: -0.1516372578 | Q157: 3.482827863 | R157: -0.1132014304 | S157: 3.484667055
A158: 1.56 | B158: 1.527771329 | C158: 0.1514535849 | D158: 1.535260051 | E158: 5.083550686 | H158: 0.03813029566 | I158: 3.477761177 | K158: 1.471985496 | L158: -0.04359092042 | M158: 0.003761558161 | N158: 0.03794430296 | O158: 3.474457534 | P158: -0.1515508047 | Q158: 3.478219092 | R158: -0.1136065018 | S158: 3.480073921
A159: 1.57 | B159: 1.537765999 | C159: 0.1511271364 | D159: 1.54517432 | E159: 5.086874514 | H159: 0.03764255619 | I159: 3.473217836 | K159: 1.472833835 | L159: -0.0436224886 | M159: 0.003681663388 | N159: 0.03746207938 | O159: 3.469913729 | P159: -0.1514623579 | Q159: 3.473595393 | R159: -0.1140002786 | S159: 3.475465583
A160: 1.58 | B160: 1.547760618 | C160: 0.150799122 | D160: 1.555089485 | E160: 5.090217293 | H160: 0.03716407274 | I160: 3.468657564 | K160: 1.473672356 | L160: -0.04365378611 | M160: 0.003603850191 | N160: 0.03698892491 | O160: 3.46535306 | P160: -0.1513719476 | Q160: 3.46895691 | R160: -0.1143830227 | S160: 3.470842192
A161: 1.59 | B161: 1.557755187 | C161: 0.1504695679 | D161: 1.565005531 | E161: 5.093578961 | H161: 0.0366946135 | I161: 3.464080574 | K161: 1.474501227 | L161: -0.04368481819 | M161: 0.003528053114 | N161: 0.036524615 | O161: 3.460775738 | P161: -0.1512796033 | Q161: 3.464303791 | R161: -0.1147549883 | S161: 3.466203898
A162: 1.6 | B162: 1.567749705 | C162: 0.1501384997 | D162: 1.574922444 | E162: 5.096959457 | H162: 0.03623395384 | I162: 3.45948708 | K162: 1.475320614 | L162: -0.04371558999 | M162: 0.003454209118 | N162: 0.03606893192 | O162: 3.456181975 | P162: -0.1511853542 | Q162: 3.459636184 | R162: -0.1151164222 | S162: 3.461550854
A163: 1.61 | B163: 1.577744174 | C163: 0.1498059423 | D163: 1.584840212 | E163: 5.10035872 | H163: 0.03578187607 | I163: 3.454877291 | K163: 1.476130678 | L163: -0.0437461065 | M163: 0.003382257481 | N163: 0.03562166461 | O163: 3.451571981 | P163: -0.1510892287 | Q163: 3.454954239 | R163: -0.1154675641 | S163: 3.456883213
A164: 1.62 | B164: 1.587738593 | C164: 0.1494719202 | D164: 1.594758821 | E164: 5.103776689 | H164: 0.03533816916 | I164: 3.450251419 | K164: 1.476931578 | L164: -0.04377637261 | M164: 0.003312139699 | N164: 0.03518260835 | O164: 3.446945966 | P164: -0.150991255 | Q164: 3.450258106 | R164: -0.1158086467 | S164: 3.45220113
A165: 1.63 | B165: 1.597732965 | C165: 0.149136457 | D165: 1.604678258 | E165: 5.107213305 | H165: 0.0349026285 | I165: 3.445609671 | K165: 1.477723469 | L165: -0.04380639309 | M165: 0.00324379939 | N165: 0.03475156459 | O165: 3.442304137 | P165: -0.1508914608 | Q165: 3.445547937 | R165: -0.1161398962 | S165: 3.447504758
A166: 1.64 | B166: 1.607727289 | C166: 0.1487995759 | D166: 1.61459851 | E166: 5.110668507 | H166: 0.03447505568 | I166: 3.440952255 | K166: 1.4785065 | L166: -0.04383617262 | M166: 0.003177182211 | N166: 0.03432834073 | O166: 3.4376467 | P166: -0.150789873 | Q166: 3.440823883 | R166: -0.1164615323 | S166: 3.442794255
A167: 1.65 | B167: 1.617721566 | C167: 0.1484612997 | D167: 1.624519567 | E167: 5.114142237 | H167: 0.03405525825 | I167: 3.436279378 | K167: 1.47928082 | L167: -0.04386571575 | M167: 0.003112235769 | N167: 0.03391274986 | O167: 3.432973862 | P167: -0.1506865184 | Q167: 3.436086097 | R167: -0.1167737685 | S167: 3.438069775
A168: 1.66 | B168: 1.627715796 | C168: 0.1481216505 | D168: 1.634441414 | E168: 5.117634437 | H168: 0.03364304953 | I168: 3.431591243 | K168: 1.480046573 | L168: -0.04389502695 | M168: 0.003048909543 | N168: 0.03350461061 | O168: 3.428285825 | P168: -0.1505814232 | Q168: 3.431334734 | R168: -0.1170768126 | S168: 3.433331478
A169: 1.67 | B169: 1.63770998 | C169: 0.1477806499 | D169: 1.644364041 | E169: 5.121145048 | H169: 0.03323824839 | I169: 3.426888056 | K169: 1.480803901 | L169: -0.04392411057 | M169: 0.002987154806 | N169: 0.03310374695 | O169: 3.423582793 | P169: -0.1504746132 | Q169: 3.426569947 | R169: -0.1173708662 | S169: 3.42857952
A170: 1.68 | B170: 1.647704119 | C170: 0.147438319 | D170: 1.654287436 | E170: 5.124674012 | H170: 0.03284067903 | I170: 3.422170018 | K170: 1.481552942 | L170: -0.04395297088 | M170: 0.002926924551 | N170: 0.03270998795 | O170: 3.418864968 | P170: -0.1503661138 | Q170: 3.421791892 | R170: -0.1176561258 | S170: 3.42381406
A171: 1.69 | B171: 1.657698213 | C171: 0.1470946785 | D171: 1.664211588 | E171: 5.128221273 | H171: 0.03245017086 | I171: 3.417437332 | K171: 1.482293831 | L171: -0.04398161203 | M171: 0.002868173425 | N171: 0.03232316769 | O171: 3.41413255 | P171: -0.1502559499 | Q171: 3.417000723 | R171: -0.1179327822 | S171: 3.419035257
A172: 1.7 | B172: 1.667692262 | C172: 0.1467497485 | D172: 1.674136485 | E172: 5.131786773 | H172: 0.03206655823 | I172: 3.412690198 | K172: 1.483026701 | L172: -0.04401003812 | M172: 0.002810857656 | N172: 0.03194312502 | O172: 3.40938574 | P172: -0.1501441461 | Q172: 3.412196597 | R172: -0.1182010211 | S172: 3.414243269
A173: 1.71 | B173: 1.677686268 | C173: 0.1464035488 | D173: 1.684062116 | E173: 5.135370456 | H173: 0.03168968034 | I173: 3.407928815 | K173: 1.483751681 | L173: -0.04403825312 | M173: 0.002754934996 | N173: 0.03156970341 | O173: 3.404624735 | P173: -0.1500307266 | Q173: 3.40737967 | R173: -0.1184610232 | S173: 3.409438257
A174: 1.72 | B174: 1.68768023 | C174: 0.1460560985 | D174: 1.693988472 | E174: 5.138972267 | H174: 0.03131938102 | I174: 3.403153381 | K174: 1.484468898 | L174: -0.04406626093 | M174: 0.002700364657 | N174: 0.03120275081 | O174: 3.399849734 | P174: -0.1499157153 | Q174: 3.402550098 | R174: -0.1187129645 | S174: 3.404620381
A175: 1.73 | B175: 1.697674149 | C175: 0.1457074165 | D175: 1.70391554 | E175: 5.142592148 | H175: 0.03095550858 | I175: 3.398364093 | K175: 1.485178477 | L175: -0.04409406538 | M175: 0.002647107252 | N175: 0.03084211949 | O175: 3.395060932 | P175: -0.1497991354 | Q175: 3.397708039 | R175: -0.1189570159 | S175: 3.399789801
A176: 1.74 | B176: 1.707668026 | C176: 0.1453575213 | D176: 1.713843311 | E176: 5.146230046 | H176: 0.03059791567 | I176: 3.393561148 | K176: 1.485880538 | L176: -0.0441216702 | M176: 0.002595124742 | N176: 0.03048766589 | O176: 3.390258524 | P176: -0.1496810102 | Q176: 3.392853649 | R176: -0.1191933443 | S176: 3.394946676
A177: 1.75 | B177: 1.717661861 | C177: 0.1450064309 | D177: 1.723771775 | E177: 5.149885904 | H177: 0.03024645914 | I177: 3.38874474 | K177: 1.486575201 | L177: -0.04414907904 | M177: 0.002544380381 | N177: 0.03013925047 | O177: 3.385442706 | P177: -0.1495613623 | Q177: 3.387987086 | R177: -0.1194221118 | S177: 3.390091169
A178: 1.76 | B178: 1.727655654 | C178: 0.1446541627 | D178: 1.733700922 | E178: 5.153559669 | H178: 0.02990099986 | I178: 3.383915063 | K178: 1.487262582 | L178: -0.04417629549 | M178: 0.002494838669 | N178: 0.02979673762 | O178: 3.380613669 | P178: -0.1494402141 | Q178: 3.383108508 | R178: -0.1196434765 | S178: 3.38522344
A179: 1.77 | B179: 1.737649407 | C179: 0.1443007341 | D179: 1.743630741 | E179: 5.157251285 | H179: 0.02956140262 | I179: 3.379072311 | K179: 1.487942796 | L179: -0.04420332305 | M179: 0.002446465297 | N179: 0.02945999546 | O179: 3.375771606 | P179: -0.1493175878 | Q179: 3.378218072 | R179: -0.1198575923 | S179: 3.380343649
A180: 1.78 | B180: 1.747643119 | C180: 0.1439461619 | D180: 1.753561224 | E180: 5.1609607 | H180: 0.029227536 | I180: 3.374216674 | K180: 1.488615954 | L180: -0.04423016516 | M180: 0.00239922711 | N180: 0.02912889578 | O180: 3.370916709 | P180: -0.1491935049 | Q180: 3.373315936 | R180: -0.1200646091 | S180: 3.375451957
A181: 1.79 | B181: 1.75763679 | C181: 0.1435904626 | D181: 1.763492361 | E181: 5.164687859 | H181: 0.02889927219 | I181: 3.369348343 | K181: 1.489282165 | L181: -0.04425682517 | M181: 0.002353092054 | N181: 0.02880331389 | O181: 3.366049167 | P181: -0.149067987 | Q181: 3.368402259 | R181: -0.1202646731 | S181: 3.370548526
A182: 1.8 | B182: 1.767630423 | C182: 0.1432336522 | D182: 1.773424143 | E182: 5.168432709 | H182: 0.02857648697 | I182: 3.364467508 | K182: 1.489941537 | L182: -0.04428330638 | M182: 0.002308029138 | N182: 0.0284831285 | O182: 3.361169168 | P182: -0.1489410552 | Q182: 3.363477197 | R182: -0.1204579267 | S182: 3.365633517
A183: 1.81 | B183: 1.777624016 | C183: 0.1428757465 | D183: 1.78335656 | E183: 5.172195197 | H183: 0.0282590595 | I183: 3.359574358 | K183: 1.490594175 | L183: -0.04430961202 | M183: 0.002264008394 | N183: 0.02816822163 | O183: 3.356276901 | P183: -0.1488127302 | Q183: 3.35854091 | R183: -0.1206445085 | S183: 3.360707089
A184: 1.82 | B184: 1.78761757 | C184: 0.142516761 | D184: 1.793289604 | E184: 5.17597527 | H184: 0.02794687223 | I184: 3.35466908 | K184: 1.491240182 | L184: -0.04433574524 | M184: 0.002221000836 | N184: 0.02785847847 | O184: 3.351372554 | P184: -0.1486830325 | Q184: 3.353593554 | R184: -0.1208245541 | S184: 3.355769405
A185: 1.83 | B185: 1.797611086 | C185: 0.1421567108 | D185: 1.803223266 | E185: 5.179772875 | H185: 0.02763981085 | I185: 3.349751861 | K185: 1.491879658 | L185: -0.04436170915 | M185: 0.002178978427 | N185: 0.02755378734 | O185: 3.34645631 | P185: -0.1485519825 | Q185: 3.348635289 | R185: -0.1209981952 | S185: 3.350820625
A186: 1.84 | B186: 1.807604565 | C186: 0.1417956106 | D186: 1.813157538 | E186: 5.183587961 | H186: 0.0273377641 | I186: 3.344822886 | K186: 1.492512703 | L186: -0.04438750679 | M186: 0.002137914038 | N186: 0.0272540395 | O186: 3.341528357 | P186: -0.1484196 | Q186: 3.343666271 | R186: -0.1211655605 | S186: 3.345860909
A187: 1.85 | B187: 1.817598005 | C187: 0.1414334749 | D187: 1.82309241 | E187: 5.187420475 | H187: 0.02704062373 | I187: 3.339882339 | K187: 1.493139413 | L187: -0.04441314113 | M187: 0.002097781416 | N187: 0.02695912916 | O187: 3.336588877 | P187: -0.1482859048 | Q187: 3.338686658 | R187: -0.1213267756 | S187: 3.340890418
A188: 1.86 | B188: 1.827591409 | C188: 0.1410703179 | D188: 1.833027876 | E188: 5.191270366 | H188: 0.0267482844 | I188: 3.334930405 | K188: 1.493759884 | L188: -0.04443861508 | M188: 0.002058555156 | N188: 0.02666895328 | O188: 3.331638053 | P188: -0.1481509162 | Q188: 3.333696608 | R188: -0.1214819629 | S188: 3.335909312
A189: 1.87 | B189: 1.837584776 | C189: 0.1407061535 | D189: 1.842963925 | E189: 5.195137582 | H189: 0.02646064355 | I189: 3.329967266 | K189: 1.494374208 | L189: -0.04446393152 | M189: 0.002020210662 | N189: 0.02638341157 | O189: 3.326676067 | P189: -0.1480146534 | Q189: 3.328696278 | R189: -0.1216312418 | S189: 3.330917752
A190: 1.88 | B190: 1.847578107 | C190: 0.1403409951 | D190: 1.852900552 | E190: 5.199022072 | H190: 0.02617760136 | I190: 3.324993103 | K190: 1.494982476 | L190: -0.04448909324 | M190: 0.001982724124 | N190: 0.02610240636 | O190: 3.3217031 | P190: -0.1478771352 | Q190: 3.323685825 | R190: -0.1217747289 | S190: 3.325915896
A191: 1.89 | B191: 1.857571402 | C191: 0.1399748562 | D191: 1.862837747 | E191: 5.202923785 | H191: 0.02589906061 | I191: 3.320008097 | K191: 1.495584779 | L191: -0.04451410301 | M191: 0.001946072485 | N191: 0.02582584253 | O191: 3.316719333 | P191: -0.1477383804 | Q191: 3.318665405 | R191: -0.1219125379 | S191: 3.320903904
A192: 1.9 | B192: 1.867564661 | C192: 0.1396077497 | D192: 1.872775504 | E192: 5.20684267 | H192: 0.02562492666 | I192: 3.315012426 | K192: 1.496181203 | L192: -0.04453896352 | M192: 0.001910233416 | N192: 0.02555362743 | O192: 3.311724943 | P192: -0.1475984073 | Q192: 3.313635176 | R192: -0.1220447798 | S192: 3.315881935
A193: 1.91 | B193: 1.877557885 | C193: 0.1392396884 | D193: 1.882713813 | E193: 5.210778677 | H193: 0.02535510732 | I193: 3.310006271 | K193: 1.496771835 | L193: -0.04456367742 | M193: 0.001875185287 | N193: 0.02528567079 | O193: 3.306720109 | P193: -0.147457234 | Q193: 3.308595294 | R193: -0.1221715632 | S193: 3.310850149
A194: 1.92 | B194: 1.887551075 | C194: 0.1388706848 | D194: 1.892652669 | E194: 5.214731755 | H194: 0.02508951279 | I194: 3.304989808 | K194: 1.497356759 | L194: -0.04458824732 | M194: 0.001840907145 | N194: 0.02502188468 | O194: 3.301705008 | P194: -0.1473148785 | Q194: 3.303545915 | R194: -0.1222929939 | S194: 3.305808704
A195: 1.93 | B195: 1.89754423 | C195: 0.1385007511 | D195: 1.902592064 | E195: 5.218701855 | H195: 0.0248280556 | I195: 3.299963214 | K195: 1.497936058 | L195: -0.04461267576 | M195: 0.001807378689 | N195: 0.02476218341 | O195: 3.296679815 | P195: -0.1471713586 | Q195: 3.298487194 | R195: -0.1224091752 | S195: 3.300757758
A196: 1.94 | B196: =(Q195/S195)*A$3+B195 -> 1.907537351 | C196: =(R195/S195)*A$3+C195 -> 0.1381298994 | D196: =SQRT(B196^2+C196^2) -> 1.91253199 | E196: =SQRT((SIN(K196)*D196)^2 + (5-COS(K196)*D196)^2) -> 5.222688926 | H196: =$F$2*$J$2/(D196^2) -> 0.02457065052 | I196: =$G$2*$J$2/(E196^2) -> 3.294926664 | K196: =ATAN(B196/C196) -> 1.498509814 | L196: =-ATAN(C196/(5-B196)) -> -0.04463696526 | M196: =COS(K196)*H196 -> 0.001774580243 | N196: =SIN(K196)*H196 -> 0.02450648346 | O196: =COS(L196)*I196 -> 3.291644706 | P196: =SIN(L196)*I196 -> -0.1470266916 | Q196: =M196+O196 -> 3.293419287 | R196: =N196+P196 -> -0.1225202081 | S196: =SQRT(Q196^2+R196^2) -> 3.295697468
A197: 1.95 | B197: 1.917530438 | C197: 0.1377581413 | D197: 1.922472441 | E197: 5.226692919 | H197: 0.02431721448 | I197: 3.289880333 | K197: 1.499078105 | L197: -0.04466111827 | M197: 0.001742492739 | N197: 0.02425470345 | O197: 3.286599855 | P197: -0.1468808948 | Q197: 3.288342348 | R197: -0.1226261913 | S197: 3.290627992
A198: 1.96 | B198: 1.927523492 | C198: 0.1373854885 | D198: 1.93241341 | E198: 5.230713785 | H198: 0.02406766656 | I198: 3.284824395 | K198: 1.49964101 | L198: -0.0446851372 | M198: 0.001711097693 | N198: 0.02400676401 | O198: 3.281545435 | P198: -0.1467339853 | Q198: 3.283256533 | R198: -0.1227272213 | S198: 3.285549487
A199: 1.97 | B199: 1.937516513 | C199: 0.1370119521 | D199: 1.942354889 | E199: 5.234751474 | H199: 0.02382192785 | I199: 3.279759022 | K199: 1.500198605 | L199: -0.04470902443 | M199: 0.001680377184 | N199: 0.0237625878 | O199: 3.276481618 | P199: -0.1465859798 | Q199: 3.278161995 | R199: -0.122823392 | S199: 3.28046211
A200: 1.98 | B200: 1.947509502 | C200: 0.1366375433 | D200: 1.952296873 | E200: 5.238805937 | H200: 0.02357992145 | I200: 3.274684387 | K200: 1.500750966 | L200: -0.04473278229 | M200: 0.001650313835 | N200: 0.02352209939 | O200: 3.271408575 | P200: -0.1464368951 | Q200: 3.273058889 | R200: -0.1229147957 | S200: 3.275366016
... 303 more rows
